fUST/lending_fUST_20250127
["ID","MTS","AMOUNT","RATE_DAILY","PERIOD"]
[350488029,1737919838296,-2221.49457736,0.00015467,2]
[350488030,1737919838306,-246.811512,0.00015517,2]
[350488031,1737919838316,-300.0,0.0001564,2]
[350488032,1737919838326,-1980.548081,0.00015641,2]
[350488033,1737919838337,-151.6,0.000158,7]
[350488034,1737919838346,-500.0,0.00015972,2]
[350488035,1737919838355,-758.75999955,0.00016362,2]
[350488036,1737919838364,-1339.9649374,0.00016362,2]
[350488038,1737919838375,-1339.96493739,0.00016397,2]
[350488040,1737919838385,-152.0,0.00016426,2]
[350488041,1737919838394,-1339.96493739,0.00016432,2]
[350488042,1737919838403,-500.0,0.00016461,2]
[350488043,1737919838412,-500.0,0.00016461,2]
[350488044,1737919838422,-394.87798124,0.00016461,2]
[350488046,1737919838430,-588.68497984,0.00016461,2]
[350488048,1737919838440,-576.83473718,0.00016461,2]
[350488049,1737919838449,-500.0,0.00016461,2]
[350488050,1737919838459,-500.0,0.00016461,2]
[350488051,1737919838469,-503.21138459,0.00016461,2]
[350488052,1737919838479,-500.0,0.00016461,2]
[350488053,1737919838487,-500.0,0.00016461,2]
[350488054,1737919838498,-500.0,0.00016461,2]
[350488055,1737919838508,-500.0,0.00016461,2]
[350488056,1737919838518,-500.0,0.00016461,2]
[350488057,1737919838528,-641.38299848,0.00016461,2]
[350488058,1737919838537,-500.0,0.00016461,2]
[350488059,1737919838546,-500.0,0.00016461,2]
[350488060,1737919838558,-500.0,0.00016461,2]
[350488061,1737919838567,-371.77500449,0.00016461,2]
[350488062,1737919838576,-500.0,0.00016461,2]
[350488063,1737919838586,-500.0,0.00016461,2]
[350488064,1737919838595,-500.0,0.00016461,2]
[350488065,1737919838604,-500.0,0.00016461,2]
[350488066,1737919838613,-500.0,0.00016461,2]
[350488067,1737919838622,-500.0,0.00016461,2]
[350488068,1737919838632,-500.0,0.00016461,2]
[350488069,1737919838641,-500.0,0.00016461,2]
[350488070,1737919838652,-500.0,0.00016461,2]
[350488071,1737919838661,-500.0,0.00016461,2]
[350488072,1737919838670,-500.0,0.00016461,2]
[350488073,1737919838680,-541.4808787,0.00016461,2]
[350488074,1737919838689,-500.0,0.00016461,2]
[350488075,1737919838698,-500.0,0.00016461,2]
[350488076,1737919838707,-450.0,0.00016461,2]
[350488077,1737919838716,-500.0,0.00016461,2]
[350488078,1737919838726,-500.0,0.00016461,2]
[350488079,1737919838735,-500.0,0.00016461,2]
[350488080,1737919838744,-324.40072206,0.00016461,2]
[350488081,1737919838753,-500.0,0.00016461,2]
[350488082,1737919838763,-500.0,0.00016461,2]
[350488083,1737919838772,-500.0,0.00016461,2]
[350488084,1737919838781,-500.0,0.00016461,2]
[350488085,1737919838790,-500.0,0.00016461,2]
[350488086,1737919838799,-500.0,0.00016461,2]
[350488087,1737919838808,-500.0,0.00016461,2]
[350488088,1737919838818,-500.0,0.00016461,2]
[350488089,1737919838827,-500.0,0.00016461,2]
[350488090,1737919838836,-500.0,0.00016461,2]
[350488091,1737919838845,-500.0,0.00016461,2]
[350488092,1737919838854,-500.0,0.00016461,2]
[350488093,1737919838863,-500.0,0.00016461,2]
[350488094,1737919838872,-500.0,0.00016461,2]
[350488095,1737919838881,-500.0,0.00016461,2]
[350488096,1737919838890,-500.0,0.00016461,2]
[350488097,1737919838898,-500.0,0.00016461,2]
[350488098,1737919838908,-500.0,0.00016461,2]
[350488099,1737919838917,-500.0,0.00016461,2]
[350488100,1737919838926,-500.0,0.00016461,2]
[350488101,1737919838935,-500.0,0.00016461,2]
[350488102,1737919838946,-500.0,0.00016461,2]
[350488103,1737919838962,-500.0,0.00016461,2]
[350488104,1737919838971,-500.0,0.00016461,2]
[350488105,1737919838981,-639.0,0.00016461,2]
[350488106,1737919838991,-500.0,0.00016461,2]
[350488107,1737919839000,-500.0,0.00016461,2]
[350488108,1737919839010,-500.0,0.00016461,2]
[350488109,1737919839019,-500.0,0.00016461,2]
[350488110,1737919839029,-500.0,0.00016461,2]
[350488111,1737919839038,-500.0,0.00016461,2]
[350488112,1737919839047,-500.0,0.00016462,2]
[350488113,1737919839057,-596.84,0.00016462,2]
[350488114,1737919839066,-500.0,0.00016462,2]
[350488115,1737919839075,-500.0,0.00016462,2]
[350488116,1737919839085,-1515.1,0.00016462,2]
[350488117,1737919839094,-734.55,0.00016462,2]
[350488118,1737919839103,-637.64,0.00016462,2]
[350488119,1737919839112,-173.1528215,0.00016463,2]
[350488120,1737919839122,-500.0,0.00016463,2]
[350488121,1737919839131,-500.0,0.00016464,2]
[350488122,1737919839140,-500.0,0.00016464,2]
[350488123,1737919839149,-166.52110575,0.00016464,2]
[350488124,1737919839159,-500.0,0.00016464,2]
[350488125,1737919839168,-1304.26,0.00016464,2]
[350488126,1737919839177,-500.0,0.00016464,2]
[350488127,1737919839187,-662.04,0.00016464,2]
[350488128,1737919839197,-500.0,0.00016464,2]
[350488129,1737919839206,-500.0,0.00016464,2]
[350488130,1737919839215,-500.0,0.00016464,2]
[350488131,1737919839224,-500.0,0.00016464,2]
[350488132,1737919839233,-500.0,0.00016464,2]
[350488133,1737919839243,-500.0,0.00016464,2]
[350488134,1737919839252,-500.0,0.00016464,2]
[350488135,1737919839262,-5907.39,0.00016464,2]
[350488136,1737919839271,-500.0,0.00016464,2]
[350488137,1737919839281,-385.12828622,0.00016464,2]
[350488138,1737919839290,-500.0,0.00016465,2]
[350488139,1737919839300,-500.0,0.00016465,2]
[350488140,1737919839309,-500.0,0.00016465,2]
[350488141,1737919839318,-500.0,0.00016465,2]
[350488142,1737919839328,-500.0,0.00016465,2]
[350488143,1737919839338,-500.0,0.00016465,2]
[350488144,1737919839347,-500.0,0.00016465,2]
[350488145,1737919839356,-500.0,0.00016465,2]
[350488146,1737919839365,-970.20971507,0.00016465,2]
[350488147,1737919839383,-501.53028493,0.00016465,2]
[350488148,1737919839392,-2283.42,0.00016465,2]
[350488149,1737919839402,-1339.96493739,0.00016466,2]
[350488150,1737919839411,-500.0,0.00016473,2]
[350488151,1737919839420,-500.0,0.00016473,2]
[350488152,1737919839430,-1339.96493739,0.00016501,2]
[350488153,1737919839439,-500.0,0.00016565,2]
[350488154,1737919839448,-500.0,0.00016566,2]
[350488155,1737919839458,-481.3490582,0.00016566,2]
[350488156,1737919839467,-500.0,0.00016566,2]
[350488157,1737919839476,-500.0,0.00016566,2]
[350488158,1737919839485,-255.96,0.00016566,2]
[350488159,1737919839494,-500.0,0.00016566,2]
[350488160,1737919839503,-500.0,0.00016566,2]
[350488161,1737919839513,-326.61939569,0.00016566,2]
[350488162,1737919839522,-466.65300637,0.00016566,2]
[350488163,1737919839532,-500.0,0.00016566,2]
[350488164,1737919839541,-500.0,0.00016566,2]
[350488165,1737919839553,-500.0,0.00016566,2]
[350488166,1737919839563,-512.04760966,0.00016566,2]
[350488167,1737919839572,-500.0,0.00016566,2]
[350488168,1737919839581,-500.0,0.00016566,2]
[350488169,1737919839591,-500.0,0.00016566,2]
[350488170,1737919839602,-500.0,0.00016566,2]
[350488171,1737919839611,-500.0,0.00016566,2]
[350488172,1737919839620,-500.0,0.00016566,2]
[350488173,1737919839632,-97.24479438,0.00016566,2]
[350488198,1737919840530,-402.75520562,0.00016566,2]
[350488199,1737919840539,-500.0,0.00016568,2]
[350488200,1737919840548,-500.0,0.00016568,2]
[350488201,1737919840562,-500.0,0.00016569,2]
[350488202,1737919840571,-500.0,0.00016569,2]
[350488203,1737919840579,-500.0,0.00016569,2]
[350488204,1737919840588,-173.81711072,0.00016569,2]
[350488208,1737919843385,-500.0,0.00016566,2]
[350488209,1737919843395,-205.6328236,0.00016569,2]
[350488210,1737919843404,-38.46047778,0.00016569,2]
[350488211,1737919843439,-471.46177261,0.00016569,2]
[350488212,1737919843449,-453.65798164,0.00016569,2]
[350488246,1737919846380,-46.34201836,0.00016569,2]
[350488248,1737919846389,-500.0,0.00016569,2]
[350488250,1737919846399,-500.0,0.00016569,2]
[350488252,1737919846408,-500.0,0.00016569,2]
[350488254,1737919846417,-500.0,0.00016569,2]
[350488256,1737919846426,-500.0,0.00016569,2]
[350488258,1737919846435,-277.57520791,0.00016569,2]
[350488260,1737919846444,-500.0,0.00016569,2]
[350488262,1737919846454,-500.0,0.00016569,2]
[350488264,1737919846462,-500.0,0.00016569,2]
[350488266,1737919846472,-575.35366207,0.00016569,2]
[350488268,1737919846481,-500.0,0.00016569,2]
[350488271,1737919846490,-500.0,0.00016569,2]
[350488273,1737919846500,-500.0,0.00016569,2]
[350488275,1737919846509,-500.0,0.00016569,2]
[350488277,1737919846518,-500.0,0.00016569,2]
[350488279,1737919846526,-501.89090445,0.00016569,2]
[350488281,1737919846535,-501.74563648,0.00016569,2]
[350488283,1737919846544,-500.0,0.00016569,2]
[350488285,1737919846556,-500.0,0.00016569,2]
[350488287,1737919846565,-500.0,0.00016569,2]
[350488289,1737919846574,-625.64587575,0.00016569,2]
[350488291,1737919846585,-374.35412425,0.00016569,2]
[350488293,1737919846595,-151.0,0.0001657,2]
[350488295,1737919846603,-500.0,0.00016599,2]
[350488297,1737919846613,-596.84,0.00016599,2]
[350488299,1737919846623,-500.0,0.00016599,2]
[350488301,1737919846634,-1515.1,0.00016599,2]
[350488303,1737919846644,-734.55,0.00016599,2]
[350488305,1737919846653,-637.64,0.00016599,2]
[350488307,1737919846662,-209.18,0.00016601,2]
[350488309,1737919846671,-500.0,0.00016601,2]
[350488311,1737919846681,-10.58326184,0.00016601,2]
[350488314,1737919846692,-1293.27240206,0.00016601,2]
[350488316,1737919846703,-0.4043361,0.00016601,2]
[350488318,1737919846712,-500.0,0.00016601,2]
[350488320,1737919846722,-538.3956639,0.00016601,2]
[350488339,1737920250007,4488.89950257,0.00015,2]
[350488340,1737920455356,246.811513,0.00014976,2]
[350488343,1737920659431,300.0,0.00015005,2]
[350488345,1737920796167,321.049184,0.00013973,2]
[350488442,1737921033217,-300.0,0.00015157,2]
[350488443,1737921033227,-300.0,0.0001531,2]
[350488444,1737921033237,-1703.45629011,0.00015311,2]
[350488445,1737921033249,-23196.54370989,0.00015311,2]
[350488446,1737921033259,-246.811513,0.00015328,2]
[350488447,1737921033268,-234.551,0.0001587,2]
[350488448,1737921033278,-500.0,0.00015972,2]
[350488449,1737921033288,-743.85558888,0.00016338,2]
[350488450,1737921033297,-500.0,0.00016438,2]
[350488451,1737921033307,-500.0,0.00016438,2]
[350488452,1737921033317,-500.0,0.00016438,2]
[350488453,1737921033327,-500.0,0.00016438,2]
[350488454,1737921033337,-500.0,0.00016438,2]
[350488455,1737921033348,-500.0,0.00016438,2]
[350488456,1737921033357,-500.0,0.00016438,2]
[350488457,1737921033367,-500.0,0.00016438,2]
[350488458,1737921033377,-500.0,0.00016438,2]
[350488459,1737921033386,-500.0,0.00016438,2]
[350488460,1737921033396,-500.0,0.00016438,2]
[350488461,1737921033406,-500.0,0.00016438,2]
[350488462,1737921033416,-500.0,0.00016438,2]
[350488463,1737921033427,-500.0,0.00016438,2]
[350488464,1737921033436,-500.0,0.00016438,2]
[350488465,1737921033446,-500.0,0.00016438,2]
[350488466,1737921033456,-500.0,0.00016438,2]
[350488467,1737921033466,-500.0,0.00016438,2]
[350488468,1737921033476,-500.0,0.00016438,2]
[350488469,1737921033486,-500.0,0.00016438,2]
[350488470,1737921033496,-500.0,0.00016438,2]
[350488471,1737921033507,-500.0,0.00016438,2]
[350488472,1737921033516,-500.0,0.00016438,2]
[350488473,1737921033526,-538.61548583,0.00016438,2]
[350488474,1737921033536,-500.0,0.00016438,2]
[350488475,1737921033545,-500.0,0.00016438,2]
[350488476,1737921033556,-500.0,0.00016438,2]
[350488477,1737921033565,-500.0,0.00016438,2]
[350488478,1737921033575,-500.0,0.00016438,2]
[350488479,1737921033585,-500.0,0.00016438,2]
[350488480,1737921033595,-500.0,0.00016438,2]
[350488481,1737921033604,-540.76601751,0.00016438,2]
[350488482,1737921033614,-500.0,0.00016438,2]
[350488483,1737921033623,-500.0,0.00016438,2]
[350488484,1737921033633,-500.0,0.00016438,2]
[350488485,1737921033642,-500.0,0.00016438,2]
[350488486,1737921033652,-514.54,0.00016438,2]
[350488487,1737921033662,-500.0,0.00016438,2]
[350488488,1737921033671,-500.0,0.00016438,2]
[350488489,1737921033680,-1260.33,0.00016438,2]
[350488490,1737921033690,-500.0,0.00016438,2]
[350488491,1737921033700,-500.0,0.00016438,2]
[350488492,1737921033709,-500.0,0.00016438,2]
[350488493,1737921033719,-650.77,0.00016438,2]
[350488494,1737921033729,-500.0,0.00016438,2]
[350488495,1737921033738,-500.0,0.00016438,2]
[350488496,1737921033748,-500.0,0.00016438,2]
[350488497,1737921033757,-500.0,0.00016438,2]
[350488498,1737921033767,-500.0,0.00016438,2]
[350488499,1737921033777,-500.0,0.00016438,2]
[350488500,1737921033787,-389.71141989,0.00016438,2]
[350488501,1737921033806,-110.28858011,0.00016438,2]
[350488502,1737921033816,-500.0,0.00016438,2]
[350488503,1737921033826,-500.0,0.00016438,2]
[350488504,1737921033835,-500.0,0.00016438,2]
[350488505,1737921033846,-500.0,0.00016438,2]
[350488506,1737921033856,-1583.28,0.00016438,2]
[350488507,1737921033866,-500.0,0.00016438,2]
[350488508,1737921033876,-500.0,0.00016438,2]
[350488509,1737921033886,-547.1,0.00016438,2]
[350488510,1737921033896,-500.0,0.00016438,2]
[350488511,1737921033906,-500.0,0.00016438,2]
[350488512,1737921033917,-500.0,0.00016438,2]
[350488513,1737921033927,-500.0,0.00016438,2]
[350488514,1737921033937,-500.0,0.00016438,2]
[350488515,1737921033947,-500.0,0.00016438,2]
[350488516,1737921033957,-500.0,0.00016438,2]
[350488517,1737921033970,-500.0,0.00016438,2]
[350488518,1737921033979,-500.0,0.00016438,2]
[350488519,1737921033989,-500.0,0.00016438,2]
[350488520,1737921033999,-5761.83,0.00016438,2]
[350488521,1737921034010,-500.0,0.00016438,2]
[350488522,1737921034020,-2188.28,0.00016438,2]
[350488523,1737921034030,-713.02,0.00016438,2]
[350488524,1737921034040,-500.0,0.00016438,2]
[350488525,1737921034050,-230.58,0.00016438,2]
[350488526,1737921034060,-500.0,0.00016438,2]
[350488527,1737921034070,-500.0,0.00016438,2]
[350488528,1737921034080,-500.0,0.00016438,2]
[350488529,1737921034090,-539.83,0.00016438,2]
[350488530,1737921034099,-1388.85,0.00016438,2]
[350488531,1737921034109,-500.0,0.00016438,2]
[350488532,1737921034118,-215.57091834,0.00016438,2]
[350488533,1737921034128,-500.0,0.00016438,2]
[350488534,1737921034139,-584.5,0.00016438,2]
[350488535,1737921034149,-500.0,0.00016438,2]
[350488536,1737921034158,-471.20697505,0.00016448,2]
[350488537,1737921034168,-18420.97929654,0.00016448,5]
[350488538,1737921034177,-132164.81573364,0.00016449,5]
[350488539,1737921034187,-160.0,0.00016449,2]
[350488540,1737921034197,-500.0,0.00016452,2]
[350488541,1737921034206,-500.0,0.00016452,2]
[350488542,1737921034216,-500.0,0.00016452,2]
[350488543,1737921034226,-500.0,0.00016453,2]
[350488544,1737921034235,-500.0,0.00016453,2]
[350488545,1737921034245,-532.43,0.00016453,2]
[350488546,1737921034255,-500.0,0.00016456,2]
[350488547,1737921034264,-502.13715398,0.00016461,2]
[350488548,1737921034275,-500.0,0.00016461,2]
[350488549,1737921034283,-420.70558857,0.00016461,2]
[350488550,1737921034293,-210.77487987,0.00016461,2]
[350488551,1737921034303,-503.03276632,0.00016461,2]
[350488552,1737921034313,-500.0,0.00016461,2]
[350488553,1737921034323,-500.0,0.00016461,2]
[350488554,1737921034332,-554.69,0.00016461,2]
[350488555,1737921034342,-500.0,0.00016461,2]
[350488556,1737921034351,-500.0,0.00016461,2]
[350488557,1737921034362,-500.0,0.00016461,2]
[350488558,1737921034371,-500.0,0.00016461,2]
[350488559,1737921034381,-500.0,0.00016461,2]
[350488560,1737921034391,-405.92,0.00016461,2]
[350488561,1737921034401,-263.76,0.00016461,2]
[350488562,1737921034411,-500.0,0.00016461,2]
[350488563,1737921034420,-500.0,0.00016461,2]
[350488564,1737921034430,-500.0,0.00016461,2]
[350488565,1737921034439,-377.72,0.00016461,2]
[350488566,1737921034449,-500.0,0.00016461,2]
[350488567,1737921034459,-500.0,0.00016461,2]
[350488568,1737921034469,-500.0,0.00016461,2]
[350488569,1737921034479,-500.0,0.00016461,2]
[350488570,1737921034490,-500.0,0.00016494,7]
[350488571,1737921034500,-500.0,0.00016494,7]
[350488572,1737921034510,-500.0,0.00016494,7]
[350488573,1737921034521,-500.0,0.00016494,7]
[350488574,1737921034531,-500.0,0.00016494,7]
[350488575,1737921034541,-390.57,0.00016494,7]
[350488576,1737921034550,-500.0,0.00016494,7]
[350488577,1737921034560,-500.0,0.00016494,7]
[350488578,1737921034570,-500.0,0.00016494,7]
[350488579,1737921034578,-500.0,0.00016494,7]
[350488580,1737921034588,-239.0,0.000165,2]
[350488581,1737921034597,-502.68921892,0.00016566,2]
[350488582,1737921034606,-500.0,0.00016575,2]
[350488583,1737921034616,-514.54,0.00016575,2]
[350488584,1737921034625,-1260.33,0.00016575,2]
[350488585,1737921034635,-500.0,0.00016575,2]
[350488586,1737921034645,-650.77,0.00016575,2]
[350488587,1737921034654,-500.0,0.00016575,2]
[350488588,1737921034664,-500.0,0.00016575,2]
[350488589,1737921034673,-500.0,0.00016575,2]
[350488590,1737921034683,-500.0,0.00016575,2]
[350488591,1737921034693,-500.0,0.00016575,2]
[350488592,1737921034703,-500.0,0.00016575,2]
[350488593,1737921034713,-500.0,0.00016575,2]
[350488594,1737921034723,-500.0,0.00016575,2]
[350488595,1737921034732,-1583.28,0.00016575,2]
[350488596,1737921034741,-547.1,0.00016575,2]
[350488597,1737921034751,-500.0,0.00016575,2]
[350488598,1737921034760,-500.0,0.00016575,2]
[350488599,1737921034770,-500.0,0.00016575,2]
[350488600,1737921034780,-5761.83,0.00016575,2]
[350488601,1737921034790,-2188.28,0.00016575,2]
[350488602,1737921034799,-713.02,0.00016575,2]
[350488603,1737921034809,-316.49001793,0.00016575,2]
[350488604,1737921034819,-1388.85,0.00016575,2]
[350488605,1737921034829,-584.5,0.00016575,2]
[350488606,1737921034839,-500.0,0.00016575,2]
[350488607,1737921034848,-503.42511213,0.00016593,2]
[350488608,1737921034858,-374.17,0.00016598,2]
[350488609,1737921034867,-33545.41892299,0.000166,2]
[350488610,1737921034876,-151.0,0.00016709,2]
[350488611,1737921034887,-514.54,0.00016712,2]
[350488612,1737921034896,-1260.33,0.00016712,2]
[350488613,1737921034907,-500.0,0.00016712,2]
[350488614,1737921034917,-650.77,0.00016712,2]
[350488615,1737921034927,-500.0,0.00016712,2]
[350488616,1737921034936,-500.0,0.00016712,2]
[350488617,1737921034946,-500.0,0.00016712,2]
[350488618,1737921034955,-500.0,0.00016712,2]
[350488619,1737921034966,-500.0,0.00016712,2]
[350488620,1737921034977,-500.0,0.00016712,2]
[350488621,1737921034986,-500.0,0.00016712,2]
[350488622,1737921034996,-1583.28,0.00016712,2]
[350488623,1737921035007,-547.1,0.00016712,2]
[350488624,1737921035016,-500.0,0.00016712,2]
[350488625,1737921035025,-500.0,0.00016712,2]
[350488626,1737921035034,-500.0,0.00016712,2]
[350488627,1737921035044,-5761.83,0.00016712,2]
[350488628,1737921035053,-2188.28,0.00016712,2]
[350488629,1737921035063,-713.02,0.00016712,2]
[350488630,1737921035072,-1388.85,0.00016712,2]
[350488631,1737921035081,-584.5,0.00016712,2]
[350488632,1737921035090,-500.0,0.00016712,2]
[350488633,1737921035099,-153.0,0.00016728,2]
[350488634,1737921035108,-153.0,0.00016728,2]
[350488635,1737921035117,-153.0,0.00016728,2]
[350488636,1737921035126,-420.0,0.00016751,2]
[350488637,1737921035136,-3000.0,0.00016773,2]
[350488638,1737921035145,-500.0,0.0001681,7]
[350488639,1737921035154,-500.0,0.0001681,7]
[350488640,1737921035163,-300.0,0.0001681,7]
[350488641,1737921035172,-294.0,0.0001681,2]
[350488642,1737921035181,-514.54,0.00016849,2]
[350488643,1737921035190,-1260.33,0.00016849,2]
[350488644,1737921035200,-576.9,0.00016849,2]
[350488645,1737921035209,-650.77,0.00016849,2]
[350488646,1737921035219,-494.45,0.00016849,2]
[350488647,1737921035228,-500.0,0.00016849,2]
[350488648,1737921035239,-500.0,0.00016849,2]
[350488649,1737921035249,-500.0,0.00016849,2]
[350488650,1737921035257,-500.0,0.00016849,2]
[350488651,1737921035266,-275.39,0.00016849,2]
[350488652,1737921035276,-1583.28,0.00016849,2]
[350488653,1737921035286,-547.1,0.00016849,2]
[350488654,1737921035296,-500.0,0.00016849,2]
[350488655,1737921035305,-500.0,0.00016849,2]
[350488656,1737921035315,-371.92328141,0.00016849,2]
[350488657,1737921035324,-5761.83,0.00016849,2]
[350488658,1737921035333,-2188.28,0.00016849,2]
[350488659,1737921035343,-713.02,0.00016849,2]
[350488660,1737921035352,-1388.85,0.00016849,2]
[350488661,1737921035361,-584.5,0.00016849,2]
[350488662,1737921035371,-500.0,0.00016849,2]
[350488663,1737921035380,-150.0,0.00016891,2]
[350488664,1737921035389,-545.316,0.00016891,2]
[350488665,1737921035398,-2056.448,0.00016891,2]
[350488666,1737921035408,-2305.0,0.00016891,2]
[350488667,1737921035417,-432.451,0.00016891,2]
[350488668,1737921035426,-150.0,0.00016891,2]
[350488669,1737921035435,-4012.79630299,0.000169,2]
[350488670,1737921035445,-150.0,0.00016967,2]
[350488671,1737921035455,-298.57,0.00016967,2]
[350488672,1737921035465,-514.54,0.00016986,2]
[350488673,1737921035474,-1260.33,0.00016986,2]
[350488674,1737921035483,-650.77,0.00016986,2]
[350488675,1737921035493,-521.7,0.00016986,2]
[350488676,1737921035503,-500.0,0.00016986,2]
[350488677,1737921035512,-500.0,0.00016986,2]
[350488678,1737921035522,-500.0,0.00016986,2]
[350488679,1737921035531,-1583.28,0.00016986,2]
[350488680,1737921035541,-547.1,0.00016986,2]
[350488681,1737921035550,-500.0,0.00016986,2]
[350488682,1737921035559,-500.0,0.00016986,2]
[350488683,1737921035568,-5761.83,0.00016986,2]
[350488684,1737921035578,-2188.28,0.00016986,2]
[350488685,1737921035587,-713.02,0.00016986,2]
[350488686,1737921035597,-1388.85,0.00016986,2]
[350488687,1737921035608,-584.5,0.00016986,2]
[350488688,1737921035617,-7991.72782421,0.00017,2]
[350488689,1737921035627,-500.0,0.00017062,2]
[350488690,1737921035636,-500.0,0.00017062,2]
[350488691,1737921035645,-381.477,0.00017068,2]
[350488692,1737921035655,-192.474,0.00017068,2]
[350488693,1737921035664,-1200.0,0.00017101,2]
[350488694,1737921035674,-4012.79630289,0.00017107,2]
[350488695,1737921035683,-514.54,0.00017123,2]
[350488696,1737921035693,-1260.33,0.00017123,2]
[350488697,1737921035702,-650.77,0.00017123,2]
[350488698,1737921035711,-314.27,0.00017123,2]
[350488699,1737921035721,-500.0,0.00017123,2]
[350488700,1737921035730,-500.0,0.00017123,2]
[350488701,1737921035740,-1583.28,0.00017123,2]
[350488702,1737921035750,-547.1,0.00017123,2]
[350488703,1737921035759,-500.0,0.00017123,2]
[350488704,1737921035768,-500.0,0.00017123,2]
[350488705,1737921035777,-5761.83,0.00017123,2]
[350488706,1737921035787,-2188.28,0.00017123,2]
[350488707,1737921035796,-713.02,0.00017123,2]
[350488708,1737921035806,-1388.85,0.00017123,2]
[350488709,1737921035815,-584.5,0.00017123,2]
[350488710,1737921035824,-155.0,0.00017138,2]
[350488711,1737921035834,-155.0,0.00017138,2]
[350488712,1737921035843,-155.0,0.00017138,2]
[350488713,1737921035852,-155.0,0.00017138,2]
[350488714,1737921035861,-155.0,0.00017138,2]
[350488715,1737921035870,-155.0,0.00017138,2]
[350488716,1737921035879,-155.0,0.00017138,2]
[350488717,1737921035889,-155.0,0.00017138,2]
[350488718,1737921035898,-192.0,0.00017138,2]
[350488719,1737921035908,-1000.0,0.00017195,2]
[350488720,1737921035917,-621.0,0.000172,2]
[350488721,1737921035926,-743.85558886,0.00017235,2]
[350488722,1737921035935,-990.91294527,0.00017255,2]
[350488723,1737921035945,-514.54,0.0001726,2]
[350488724,1737921035955,-1260.33,0.0001726,2]
[350488725,1737921035964,-650.77,0.0001726,2]
[350488726,1737921035978,-500.0,0.0001726,2]
[350488727,1737921035987,-500.0,0.0001726,2]
[350488728,1737921035997,-895.36526432,0.0001726,2]
[350488729,1737921036011,-394.44286205,0.0001726,2]
[350488730,1737921036022,-293.47187363,0.0001726,2]
[350488731,1737921036031,-547.1,0.0001726,2]
[350488732,1737921036041,-498.22833756,0.0001726,2]
[350488733,1737921036128,300.0,0.00015005,2]
[350488738,1737921038424,-249.40677106,0.00016709,2]
[350488739,1737921038433,-150.0,0.00016891,2]
[350488740,1737921038443,-500.0,0.00016986,2]
[350488741,1737921038575,-500.0,0.00017123,2]
[350488742,1737921038585,-1.77166244,0.0001726,2]
[350488743,1737921038594,-500.0,0.0001726,2]
[350488744,1737921038603,-2960.13475657,0.0001726,2]
[350488745,1737921038623,-474.84170173,0.0001726,2]
[350488746,1737921038636,-2326.8535417,0.0001726,2]
[350488747,1737921038647,-2188.28,0.0001726,2]
[350488748,1737921038657,-713.02,0.0001726,2]
[350488749,1737921038667,-12.7192939,0.0001726,2]
[350488750,1737921038678,-1376.1307061,0.0001726,2]
[350488751,1737921038688,-584.5,0.0001726,2]